bitfinex-derivatives/quotes_BTCF0:USTF0_20260314
["timestamp","ask_amount","ask_price","bid_price","bid_amount"]
[1773464938825,0.042161,71144.0,71135.0,0.00056]
[1773464941026,0.06127343,71135.0,71126.0,4e-07]
[1773464941225,0.10344443,71129.0,71124.0,0.0014]
[1773464942026,0.06127343,71129.0,71124.0,0.0014]
[1773464942519,0.07299122,71130.0,71124.0,0.0014]
[1773464942929,0.042172,71127.0,71109.0,0.06229221]
[1773464943137,0.07299122,71120.0,71110.0,0.0014]
[1773464943323,0.07299122,71120.0,71111.0,0.0014]
[1773464943518,0.0203,71119.0,71112.0,0.04358]
[1773464943733,0.0203,71119.0,71112.0,0.04218]
[1773464944228,0.0203,71119.0,71113.0,0.0014]
[1773464944431,0.0203,71123.0,71113.0,0.0014]
[1773464944625,0.0203,71123.0,71114.0,0.0014]
[1773464945135,0.0203,71123.0,71115.0,0.0014]
[1773464947928,0.0203,71123.0,71115.0,0.0024]
[1773464948533,0.0203,71123.0,71115.0,0.0014]
[1773464948727,0.0203,71123.0,71115.0,0.0024]
[1773464949334,0.0203,71123.0,71115.0,0.001]
[1773464949534,0.0203,71123.0,71116.0,0.0014]
[1773464949934,0.0203,71123.0,71117.0,0.0014]
[1773464950429,0.0203,71123.0,71115.0,0.001]
[1773464950630,0.0203,71123.0,71117.0,0.0014]
[1773464951228,0.062471,71127.0,71117.0,0.0014]
[1773464951428,0.062471,71127.0,71117.0,0.0024]
[1773464952128,0.0203,71127.0,71117.0,0.0024]
[1773464953429,0.042171,71128.0,71117.0,0.0024]
[1773464953829,0.042172,71127.0,71117.0,0.00169666]
[1773464954037,0.042172,71127.0,71117.0,0.00069666]
[1773464954435,0.06127343,71129.0,71109.0,0.042182]
[1773464954634,0.07299122,71120.0,71110.0,0.042181]
[1773464954834,0.07299122,71120.0,71111.0,0.0014]
[1773464955235,0.10344743,71123.0,71112.0,0.0014]
[1773464956143,0.042173,71125.0,71102.0,0.06229221]
[1773464956336,0.042173,71125.0,71113.0,0.042179]
[1773464956537,0.042173,71125.0,71114.0,0.0014]
[1773464957340,0.0203,71124.0,71114.0,0.0014]
[1773464958545,0.0203,71124.0,71114.0,0.0024]
[1773464959439,0.0203,71124.0,71114.0,0.0014]
[1773464960044,0.062473,71124.0,71114.0,0.0014]
[1773464969041,0.0203,71124.0,71114.0,0.043579]
[1773464969240,0.06127343,71128.0,71114.0,0.043579]
[1773464969241,0.062473,71125.0,71114.0,0.043579]
[1773464970052,0.042173,71124.0,71114.0,0.0014]
[1773464970355,0.062473,71125.0,71114.0,0.043579]
[1773464972349,0.042173,71124.0,71114.0,0.0014]
[1773464975253,0.0203,71123.0,71114.0,0.0014]
[1773464979358,0.0203,71123.0,71115.0,0.06231513]
[1773464979855,0.0203,71133.0,71115.0,0.06231513]
[1773464980056,0.042172,71126.0,71115.0,0.10449313]
[1773464981653,0.062473,71125.0,71115.0,0.06231513]
[1773464981854,0.062473,71125.0,71114.0,0.0014]
[1773464982356,0.042173,71124.0,71114.0,0.0014]
[1773464983155,0.0203,71125.0,71114.0,0.10589413]
[1773464983357,0.0203,71125.0,71115.0,0.06231513]
[1773464984257,0.0203,71125.0,71114.0,0.043579]
[1773464990156,0.0203,71125.0,71114.0,0.10039354]
[1773464990354,0.062473,71125.0,71114.0,0.10039354]
[1773464998071,0.05655236,71144.0,71127.0,0.042171]
[1773464998263,0.21510685,71143.0,71130.0,0.10130631]
[1773464998565,0.0182,71143.0,71131.0,0.0014]
[1773464998756,0.042162,71142.0,71131.0,0.043569]
[1773464999163,0.0182,71143.0,71134.0,0.05913731]
[1773464999358,0.0182,71143.0,71136.0,0.042166]
[1773464999772,0.0182,71143.0,71137.0,0.0014]
[1773465000070,0.0182,71143.0,71137.0,0.043565]
[1773465000266,0.042155,71155.0,71138.0,0.05913731]
[1773465000467,0.042156,71153.0,71141.0,0.10130031]
[1773465001057,0.042156,71154.0,71142.0,0.042162]
[1773465001263,0.042156,71154.0,71143.0,0.0014]
[1773465003871,0.042156,71153.0,71144.0,0.0014]
[1773465004072,0.09870836,71153.0,71145.0,0.0014]
[1773465006373,0.042155,71155.0,71145.0,0.0014]
[1773465007270,0.042156,71154.0,71145.0,0.0014]
[1773465011978,0.042156,71153.0,71145.0,0.0014]
[1773465013781,0.042154,71156.0,71145.0,0.04356]
[1773465013981,0.042154,71156.0,71145.0,0.06053731]
[1773465014982,0.042155,71155.0,71145.0,0.06053731]
[1773465017170,0.042155,71154.0,71145.0,0.0014]
[1773465017374,0.042157,71151.0,71145.0,0.0014]
[1773465019087,0.042165,71138.0,71123.0,0.05913731]
[1773465019285,0.11517657,71140.0,71126.0,0.042171]
[1773465019587,0.11517657,71140.0,71127.0,0.0014]
[1773465020478,0.11517657,71140.0,71127.0,0.043571]
[1773465020677,0.042164,71140.0,71127.0,0.043571]
[1773465021084,0.11517657,71140.0,71127.0,0.043571]
[1773465021283,0.042164,71140.0,71127.0,0.043571]
[1773465023180,0.11517657,71140.0,71127.0,0.043571]
[1773465025486,0.042162,71142.0,71129.0,0.05863754]
[1773465025688,0.042162,71142.0,71130.0,0.05863754]
[1773465026185,0.042163,71141.0,71130.0,0.05863754]
[1773465028191,0.042162,71143.0,71130.0,0.05863754]
[1773465028380,0.0014,71147.0,71132.0,0.10080554]
[1773465028582,0.0014,71147.0,71133.0,0.05863754]
[1773465028789,0.0014,71147.0,71135.0,0.05863754]
[1773465029392,0.07301257,71150.0,71134.0,0.0014]
[1773465029393,0.05807703,71149.0,71134.0,0.0014]
[1773465029588,0.042163,71142.0,71134.0,0.0014]
[1773465033901,0.042161,71145.0,71134.0,0.0014]
[1773465034995,0.042161,71145.0,71134.0,0.06003754]
[1773465036300,0.042161,71144.0,71134.0,0.06003754]
[1773465037898,0.04216,71147.0,71134.0,0.06003754]
[1773465039108,0.042158,71150.0,71138.0,0.10080254]
[1773465041298,0.042157,71152.0,71139.0,0.042164]
[1773465041506,0.042157,71151.0,71140.0,0.06003754]
[1773465042012,0.042155,71154.0,71141.0,0.042163]
[1773465042914,0.042156,71153.0,71141.0,0.042163]
[1773465045510,0.042156,71153.0,71141.0,0.10080054]
[1773465049715,0.042156,71153.0,71141.0,0.042163]
[1773465049921,0.042156,71154.0,71142.0,0.05378403]
[1773465055126,0.042156,71153.0,71142.0,0.05378403]
[1773465069634,0.042157,71152.0,71142.0,0.05378403]
[1773465076046,0.042154,71157.0,71142.0,0.05076724]
[1773465076943,0.042154,71157.0,71144.0,0.042161]
[1773465077341,0.00070243,71181.0,71145.0,0.05076724]
[1773465077539,0.042151,71162.0,71148.0,0.05076724]
[1773465077841,0.042151,71162.0,71149.0,0.0014]
[1773465078043,0.042151,71162.0,71149.0,0.05076724]
[1773465078343,0.042151,71162.0,71150.0,0.05216724]
[1773465078546,0.042151,71162.0,71150.0,0.05076724]
[1773465078745,0.042151,71162.0,71151.0,0.0014]
[1773465079343,0.042151,71162.0,71152.0,0.0014]
[1773465080037,0.042151,71162.0,71148.0,0.05076724]
[1773465080345,0.042152,71161.0,71153.0,0.0014]
[1773465083345,0.042152,71160.0,71153.0,0.0014]
[1773465084747,0.12665105,71170.0,71153.0,0.0014]
[1773465086550,0.042152,71160.0,71153.0,0.0014]
[1773465087247,0.042153,71159.0,71153.0,0.0014]
[1773465090541,0.07295986,71170.0,71144.0,0.16826568]
[1773465090741,0.07295986,71170.0,71109.0,0.042181]
[1773465090742,0.05121078,71153.0,71141.0,0.0014]
[1773465090941,0.07295986,71151.0,71131.0,0.05235442]
[1773465091143,0.042161,71144.0,71132.0,0.0014]
[1773465091642,0.042161,71144.0,71133.0,0.0014]
[1773465092244,0.042161,71144.0,71134.0,0.0014]
[1773465092447,0.042161,71144.0,71116.0,0.31630634]
[1773465092448,0.07295986,71144.0,71116.0,0.31630634]
[1773465092747,0.0014,71148.0,71121.0,0.05235442]
[1773465092936,0.0014,71149.0,71122.0,0.05235442]
[1773465093135,0.05121078,71148.0,71122.0,0.05235442]
[1773465094051,0.042165,71138.0,71123.0,0.042173]
[1773465094240,0.042165,71138.0,71124.0,0.05375442]
[1773465094844,0.05121078,71148.0,71124.0,0.05375442]
[1773465094845,0.042166,71137.0,71124.0,0.05375442]
[1773465097539,0.042166,71137.0,71124.0,0.05475442]
[1773465100549,0.042166,71137.0,71124.0,0.05375442]
[1773465104256,0.05121078,71148.0,71124.0,0.05375442]
[1773465104455,0.05121078,71146.0,71124.0,0.05375442]
[1773465104753,0.25400267,71145.0,71125.0,0.0014]
[1773465104955,0.05121078,71148.0,71120.0,0.16748928]
[1773465105150,0.05121078,71146.0,71126.0,0.0014]
[1773465105353,0.05121078,71144.0,71126.0,0.0014]
[1773465106056,0.042167,71135.0,71126.0,0.0014]
[1773465106458,0.042168,71132.0,71126.0,0.0014]
[1773465107958,0.042168,71132.0,71126.0,0.050363]
[1773465108158,0.0516875,71148.0,71126.0,0.050363]
[1773465108358,0.042168,71133.0,71126.0,0.050363]
[1773465111056,0.042169,71132.0,71126.0,0.050363]
[1773465111355,0.042169,71132.0,71126.0,0.0014]
[1773465112257,0.042169,71131.0,71126.0,0.0014]
[1773465113660,0.042172,71126.0,71116.0,0.05125001]
[1773465113959,0.05338836,71134.0,71117.0,0.0014]
[1773465114558,0.05338836,71134.0,71118.0,0.0014]
[1773465114957,0.05338836,71134.0,71119.0,0.0014]
[1773465115158,0.05338836,71134.0,71120.0,0.0014]
[1773465115456,0.05338836,71134.0,71121.0,0.0014]
[1773465115664,0.05338836,71134.0,71122.0,0.0014]
[1773465115864,0.05338836,71134.0,71112.0,0.05125001]
[1773465116062,0.05338836,71134.0,71113.0,0.05265001]
[1773465116463,0.042175,71122.0,71114.0,0.0014]
[1773465116867,0.042175,71122.0,71113.0,0.05125001]
[1773465117058,0.042175,71122.0,71115.0,0.0014]
[1773465118365,0.042175,71122.0,71115.0,0.05265001]
[1773465118567,0.042175,71122.0,71115.0,0.05365001]
[1773465119568,0.042175,71122.0,71115.0,0.05465001]
[1773465121859,0.042175,71122.0,71115.0,0.05365001]
[1773465122059,0.042175,71122.0,71115.0,0.05465001]
[1773465122468,0.042175,71122.0,71115.0,0.05365001]
[1773465122871,0.042175,71122.0,71115.0,0.05465001]
[1773465126375,0.042175,71122.0,71115.0,0.05365001]
[1773465126575,0.042175,71122.0,71115.0,0.05465001]
[1773465128478,0.042175,71122.0,71115.0,0.05365001]
[1773465128666,0.042175,71122.0,71115.0,0.05465001]
[1773465129467,0.042175,71122.0,71115.0,0.0034]
[1773465136068,0.07299948,71130.0,71111.0,0.05125001]
[1773465136275,0.05338836,71129.0,71112.0,0.0014]
[1773465136783,0.05338836,71129.0,71111.0,0.05125001]
[1773465136976,0.042176,71119.0,71112.0,0.0014]
[1773465137180,0.042176,71119.0,71113.0,0.0014]
[1773465140085,0.042176,71119.0,71112.0,0.001]
[1773465140391,0.042176,71119.0,71107.0,0.05125001]
[1773465140392,0.042177,71117.0,71113.0,0.0014]
[1773465140579,0.042177,71117.0,71114.0,0.0014]
[1773465140789,0.042177,71117.0,71115.0,0.0014]
[1773465141093,0.042177,71117.0,71116.0,0.0014]
[1773465142487,0.042176,71119.0,71116.0,0.0014]
[1773465142686,0.042176,71119.0,71117.0,0.0014]
[1773465142890,0.042176,71119.0,71118.0,0.0014]
[1773465145596,0.05105983,71133.0,71118.0,0.0014]
[1773465145892,0.20368739,71132.0,71111.0,0.05049098]
[1773465146196,0.042174,71122.0,71112.0,0.0014]
[1773465146695,0.042174,71122.0,71112.0,0.05189098]
[1773465147692,0.042175,71121.0,71112.0,0.05189098]
[1773465149285,0.05105983,71129.0,71107.0,0.05049098]
[1773465149491,0.20364808,71128.0,71109.0,0.05049098]
[1773465149692,0.20364808,71127.0,71109.0,0.05049098]
[1773465149999,0.05105983,71129.0,71109.0,0.05049098]
[1773465150199,0.20364221,71128.0,71109.0,0.05049098]
[1773465150499,0.20364221,71127.0,71109.0,0.05049098]
[1773465150702,0.05105983,71129.0,71109.0,0.05049098]
[1773465150902,0.20363871,71128.0,71109.0,0.05049098]
[1773465151096,0.042177,71119.0,71109.0,0.05049098]
[1773465153001,0.042177,71119.0,71108.0,0.0014]
[1773465159506,0.0014,71134.0,71112.0,0.05049098]
[1773465159706,0.20336866,71133.0,71112.0,0.05049098]
[1773465160007,0.042173,71124.0,71113.0,0.05049098]
[1773465160797,0.042173,71124.0,71115.0,0.05049098]
[1773465162309,0.05105983,71136.0,71115.0,0.05049098]
[1773465162610,0.20339353,71135.0,71115.0,0.05049098]
[1773465162801,0.20339353,71134.0,71115.0,0.05049098]
[1773465163001,0.042173,71124.0,71115.0,0.05049098]
[1773465169514,0.042172,71126.0,71115.0,0.05049098]
[1773465173218,0.12085784,71140.0,71118.0,0.04936704]
[1773465173420,0.20342715,71139.0,71118.0,0.04936704]
[1773465173613,0.20342715,71138.0,71118.0,0.04936704]
[1773465173818,0.20342715,71137.0,71119.0,0.042176]
[1773465174018,0.042168,71133.0,71120.0,0.042175]
[1773465174218,0.042168,71133.0,71121.0,0.0014]
[1773465174721,0.20341378,71132.0,71121.0,0.0014]
[1773465174920,0.20341378,71131.0,71121.0,0.0014]
[1773465175214,0.042168,71133.0,71121.0,0.0014]
[1773465175421,0.20340341,71132.0,71121.0,0.0014]
[1773465175621,0.20340341,71131.0,71121.0,0.0014]
[1773465175918,0.042168,71133.0,71121.0,0.0014]
[1773465176220,0.20340329,71132.0,71121.0,0.0014]
[1773465176420,0.20340329,71131.0,71121.0,0.0014]
[1773465176620,0.042169,71132.0,71121.0,0.0014]
[1773465176820,0.20339452,71131.0,71121.0,0.0014]
[1773465177021,0.042169,71132.0,71121.0,0.0014]
[1773465177221,0.20339472,71131.0,71121.0,0.0014]
[1773465177425,0.042169,71132.0,71121.0,0.0014]
[1773465177622,0.20338644,71131.0,71121.0,0.0014]
[1773465177922,0.042169,71132.0,71121.0,0.0014]
[1773465180514,0.04785836,71144.0,71122.0,0.04936704]
[1773465180714,0.042167,71135.0,71123.0,0.04936704]
[1773465180917,0.20337702,71134.0,71123.0,0.04936704]
[1773465181119,0.042167,71134.0,71123.0,0.04936704]
[1773465186230,0.042152,71160.0,71124.0,0.07300548]
[1773465186527,0.042163,71141.0,71127.0,0.09153804]
[1773465187327,0.042164,71140.0,71127.0,0.09153804]
[1773465188023,0.042164,71140.0,71128.0,0.05076704]
[1773465192127,0.042169,71132.0,71128.0,0.0014]
[1773465194127,0.042169,71132.0,71119.0,0.042176]
[1773465194428,0.042169,71132.0,71120.0,0.0014]
[1773465194630,0.042169,71132.0,71119.0,0.042176]
[1773465194831,0.042169,71132.0,71120.0,0.0014]
[1773465195235,0.042169,71132.0,71121.0,0.0014]
[1773465195739,0.042169,71132.0,71122.0,0.0014]
[1773465196141,0.042169,71132.0,71119.0,0.042176]
[1773465196335,0.042169,71132.0,71120.0,0.0014]
[1773465196837,0.042169,71132.0,71121.0,0.0014]
[1773465197339,0.042169,71132.0,71122.0,0.0014]
[1773465197743,0.042169,71132.0,71119.0,0.042176]
[1773465197933,0.042169,71132.0,71120.0,0.0014]
[1773465198336,0.042169,71132.0,71121.0,0.0014]
[1773465198735,0.042169,71132.0,71119.0,0.042176]
[1773465199036,0.042169,71132.0,71120.0,0.0014]
[1773465199342,0.042169,71132.0,71121.0,0.0014]
[1773465199841,0.042169,71132.0,71122.0,0.0014]
[1773465200242,0.042169,71132.0,71120.0,0.042175]
[1773465200446,0.042169,71132.0,71121.0,0.0014]
[1773465200846,0.042169,71132.0,71120.0,0.042175]
[1773465201045,0.042169,71132.0,71121.0,0.0014]
[1773465201344,0.042169,71132.0,71120.0,0.042175]
[1773465201644,0.042169,71132.0,71121.0,0.0014]
[1773465201841,0.042169,71132.0,71120.0,0.042175]
[1773465202042,0.042169,71132.0,71121.0,0.0014]
[1773465205848,0.04785836,71139.0,71121.0,0.043574]
[1773465206950,0.042167,71135.0,71121.0,0.043574]
[1773465207143,0.042167,71135.0,71121.0,0.0014]
[1773465207349,0.042167,71135.0,71122.0,0.042174]
[1773465218248,0.042167,71135.0,71122.0,0.08883924]
[1773465221458,0.042167,71135.0,71123.0,0.04666524]
[1773465224260,0.042167,71135.0,71124.0,0.04666524]
[1773465226957,0.042166,71137.0,71124.0,0.04666524]
[1773465227154,0.0014,71149.0,71127.0,0.07300548]
[1773465227359,0.20362741,71148.0,71130.0,0.08526957]
[1773465227557,0.20362741,71147.0,71130.0,0.08526957]
[1773465227755,0.0014,71149.0,71130.0,0.08526957]
[1773465227756,0.20362741,71146.0,71130.0,0.08526957]
[1773465228061,0.20362741,71145.0,71130.0,0.08526957]
[1773465228263,0.0014,71149.0,71130.0,0.08526957]
[1773465228461,0.20358333,71148.0,71130.0,0.08526957]
[1773465228663,0.20358333,71147.0,71130.0,0.08526957]
[1773465228963,0.042162,71144.0,71130.0,0.08526957]
[1773465229462,0.0014,71149.0,71128.0,0.0014]
[1773465229463,0.042167,71135.0,71128.0,0.0014]
[1773465229660,0.042167,71135.0,71129.0,0.0014]
[1773465229865,0.042167,71135.0,71130.0,0.0014]
[1773465230055,0.042167,71135.0,71122.0,0.042174]
[1773465230256,0.042167,71135.0,71123.0,0.0014]
[1773465230463,0.0427869,71145.0,71121.0,0.04310057]
[1773465230660,0.042167,71134.0,71122.0,0.0014]
[1773465232367,0.042168,71133.0,71122.0,0.0014]
[1773465232756,0.042168,71133.0,71121.0,0.08527457]
[1773465232965,0.042168,71133.0,71122.0,0.0014]
[1773465233473,0.042168,71133.0,71123.0,0.0014]
[1773465243778,0.042168,71133.0,71124.0,0.0014]
[1773465254594,0.042167,71135.0,71124.0,0.0014]
[1773465256300,0.042167,71135.0,71122.0,0.042174]
[1773465256301,0.03356609,71139.0,71114.0,0.31629575]
[1773465256598,0.03356609,71137.0,71116.0,0.04712214]
[1773465256800,0.042169,71131.0,71118.0,0.042176]
[1773465257199,0.04217,71130.0,71120.0,0.07299693]
[1773465257499,0.04217,71130.0,71121.0,0.0014]
[1773465259197,0.042168,71133.0,71121.0,0.0014]
[1773465259406,0.03356609,71137.0,71121.0,0.0014]
[1773465259704,0.042169,71131.0,71121.0,0.0014]
[1773465260307,0.04217,71129.0,71121.0,0.0014]
[1773465271005,0.04217,71129.0,71122.0,0.0014]
[1773465271506,0.04217,71129.0,71123.0,0.0014]
[1773465272006,0.04217,71129.0,71124.0,0.0014]
[1773465272206,0.04217,71129.0,71125.0,0.0014]
[1773465272407,0.04217,71129.0,71115.0,0.042178]
[1773465272610,0.04217,71129.0,71116.0,0.0014]
[1773465273108,0.04217,71129.0,71117.0,0.0014]
[1773465273505,0.04217,71129.0,71118.0,0.0014]
[1773465274003,0.04217,71129.0,71115.0,0.042178]
[1773465274213,0.04217,71129.0,71119.0,0.0014]
[1773465274406,0.04217,71129.0,71115.0,0.042178]
[1773465274609,0.04217,71129.0,71116.0,0.0014]
[1773465275006,0.04217,71129.0,71115.0,0.042178]
[1773465275213,0.04217,71129.0,71117.0,0.0014]
[1773465275504,0.04217,71129.0,71115.0,0.042178]
[1773465275711,0.03085362,71134.0,71118.0,0.0014]
[1773465276806,0.03085362,71134.0,71115.0,0.042178]
[1773465277002,0.042172,71127.0,71116.0,0.0014]
[1773465277411,0.042172,71127.0,71117.0,0.0014]
[1773465277912,0.042172,71127.0,71118.0,0.0014]
[1773465278314,0.042172,71127.0,71115.0,0.042178]
[1773465278506,0.042172,71127.0,71116.0,0.0014]
[1773465278909,0.042172,71127.0,71117.0,0.0014]
[1773465279416,0.042172,71127.0,71118.0,0.0014]
[1773465279608,0.042173,71124.0,71111.0,0.0853996]
[1773465279814,0.042173,71124.0,71112.0,0.0014]
[1773465280208,0.042173,71124.0,71111.0,0.04218]
[1773465280415,0.042173,71124.0,71113.0,0.0014]
[1773465282922,0.042172,71126.0,71113.0,0.0014]
[1773465284219,0.042172,71126.0,71113.0,0.0446196]
[1773465285423,0.042173,71125.0,71113.0,0.0446196]
[1773465290119,0.042173,71125.0,71113.0,0.0867986]
[1773465292829,0.042173,71125.0,71113.0,0.043579]
[1773465293021,0.042173,71125.0,71114.0,0.04227722]
[1773465296338,0.042151,71162.0,71134.0,0.042167]
[1773465296524,0.042151,71162.0,71135.0,0.0014]
[1773465296525,0.03943046,71153.0,71135.0,0.0014]
[1773465296732,0.042163,71142.0,71136.0,0.0014]
[1773465297027,0.03943046,71143.0,71130.0,0.0014]
[1773465298032,0.042164,71140.0,71130.0,0.0014]
[1773465300732,0.042164,71139.0,71130.0,0.0014]
[1773465300934,0.042165,71139.0,71130.0,0.0014]
[1773465301930,0.0014,71148.0,71111.0,0.31629575]
[1773465301931,0.03943046,71130.0,71111.0,0.31629575]
[1773465302136,0.03943046,71130.0,71110.0,0.07300391]
[1773465302330,0.03943046,71130.0,71111.0,0.042181]
[1773465302732,0.03943046,71130.0,71112.0,0.04218]
[1773465303133,0.04217,71129.0,71111.0,0.04227722]
[1773465303440,0.04217,71129.0,71119.0,0.07300391]
[1773465303631,0.042171,71128.0,71120.0,0.0014]
[1773465306146,0.042172,71126.0,71120.0,0.0014]
[1773465307342,0.03943046,71135.0,71114.0,0.04227722]
[1773465307343,0.042173,71125.0,71114.0,0.0014]
[1773465307543,0.042173,71124.0,71114.0,0.0014]
[1773465307745,0.042173,71124.0,71112.0,0.04218]
[1773465308144,0.042173,71125.0,71113.0,0.0014]
[1773465308846,0.042173,71124.0,71110.0,0.15746213]
[1773465309049,0.042173,71124.0,71111.0,0.04358]
[1773465309444,0.042173,71124.0,71112.0,0.0014]
[1773465309844,0.042173,71124.0,71112.0,0.04367722]
[1773465313761,0.03943046,71125.0,71109.0,0.042182]
[1773465314062,0.03943046,71125.0,71110.0,0.0014]
[1773465314252,0.03943046,71125.0,71110.0,0.07300391]
[1773465314454,0.03943046,71125.0,71111.0,0.0014]
[1773465314852,0.042174,71122.0,71111.0,0.0014]
[1773465315053,0.042174,71122.0,71110.0,0.07300391]
[1773465315249,0.042174,71122.0,71111.0,0.0014]
[1773465315553,0.042174,71122.0,71109.0,0.042182]
[1773465315753,0.042174,71122.0,71110.0,0.0014]
[1773465315954,0.042175,71121.0,71110.0,0.0014]
[1773465316155,0.042175,71121.0,71111.0,0.0014]
[1773465316666,0.042175,71121.0,71112.0,0.0014]
[1773465317055,0.042175,71121.0,71109.0,0.042182]
[1773465317251,0.042175,71121.0,71110.0,0.0014]
[1773465317558,0.042175,71121.0,71109.0,0.042182]
[1773465317762,0.042175,71121.0,71110.0,0.07440391]
[1773465318061,0.042175,71121.0,71110.0,0.07300391]
[1773465318262,0.042175,71121.0,71111.0,0.0014]
[1773465318762,0.042175,71121.0,71112.0,0.0014]
[1773465319060,0.0014,71133.0,71112.0,0.04227722]
[1773465319362,0.0014,71142.0,71122.0,0.08445122]
[1773465319559,0.12925192,71159.0,71123.0,0.0014]
[1773465319560,0.042168,71134.0,71123.0,0.0014]
[1773465321564,0.042169,71131.0,71123.0,0.0014]
[1773465323766,0.042167,71134.0,71123.0,0.04093428]
[1773465324962,0.04040572,71151.0,71129.0,0.08170428]
[1773465325162,0.04040572,71149.0,71124.0,0.03953428]
[1773465325359,0.04040572,71147.0,71124.0,0.03953428]
[1773465325666,0.04040572,71147.0,71125.0,0.0014]
[1773465326166,0.042166,71136.0,71126.0,0.0014]
[1773465326568,0.042166,71136.0,71127.0,0.0014]
[1773465327068,0.042166,71136.0,71128.0,0.0014]
[1773465327462,0.042166,71136.0,71124.0,0.03953428]
[1773465327665,0.042166,71136.0,71125.0,0.0014]
[1773465327964,0.042166,71136.0,71124.0,0.03953428]
[1773465328167,0.042167,71135.0,71125.0,0.0014]
[1773465328468,0.042167,71135.0,71124.0,0.03953428]
[1773465328669,0.042166,71137.0,71125.0,0.0014]
[1773465329068,0.042166,71137.0,71126.0,0.0014]
[1773465329566,0.042166,71137.0,71127.0,0.0014]
[1773465330069,0.042166,71136.0,71128.0,0.0014]
[1773465330266,0.08257372,71132.0,71129.0,0.0014]
[1773465330464,0.042171,71128.0,71127.0,0.0014]
[1773465330668,0.042171,71128.0,71115.0,0.042178]
[1773465330866,0.042171,71128.0,71116.0,0.0014]
[1773465331259,0.042171,71128.0,71117.0,0.0014]
[1773465331870,0.042171,71128.0,71115.0,0.042178]
[1773465332074,0.042171,71128.0,71116.0,0.0014]
[1773465332565,0.042171,71128.0,71117.0,0.0014]
[1773465332961,0.042171,71128.0,71115.0,0.042178]
[1773465333162,0.042171,71128.0,71116.0,0.0014]
[1773465333370,0.042171,71128.0,71115.0,0.042178]
[1773465333573,0.042171,71128.0,71116.0,0.0014]
[1773465333772,0.042171,71128.0,71117.0,0.0014]
[1773465334262,0.042171,71128.0,71118.0,0.0014]
[1773465334671,0.042173,71125.0,71119.0,0.0014]
[1773465334869,0.042173,71125.0,71120.0,0.0014]
[1773465335069,0.042173,71125.0,71121.0,0.0014]
[1773465336978,0.03377301,71125.0,71121.0,0.0014]
[1773465356096,0.03377301,71125.0,71122.0,0.0014]
[1773465356890,0.03377301,71125.0,71123.0,0.0014]
[1773465358293,0.03377301,71125.0,71122.0,0.0014]
[1773465365792,0.03377301,71125.0,71113.0,0.39800903]
[1773465366005,0.03377301,71125.0,71114.0,0.0014]
[1773465368499,0.03377301,71125.0,71114.0,0.04047723]
[1773465370393,0.042169,71132.0,71119.0,0.042176]
[1773465370602,0.042169,71132.0,71120.0,0.07300384]
[1773465371504,0.042169,71132.0,71121.0,0.0014]
[1773465374104,0.042169,71131.0,71121.0,0.0014]
[1773465374311,0.03889537,71138.0,71121.0,0.0014]
[1773465374603,0.03889537,71136.0,71122.0,0.0014]
[1773465374811,0.03889537,71136.0,71123.0,0.0014]
[1773465375308,0.03889537,71136.0,71124.0,0.0014]
[1773465375807,0.04217,71130.0,71125.0,0.0014]
[1773465376011,0.04217,71130.0,71126.0,0.0014]
[1773465376204,0.03889537,71136.0,71127.0,0.0014]
[1773465377003,0.04217,71130.0,71127.0,0.0014]
[1773465378010,0.03889537,71142.0,71127.0,0.0014]
[1773465378210,0.20318278,71141.0,71128.0,0.03907723]
[1773465378403,0.042166,71136.0,71128.0,0.03907723]
[1773465378607,0.03889537,71147.0,71127.0,0.0014]
[1773465378805,0.03889537,71145.0,71127.0,0.0014]
[1773465379114,0.03889537,71143.0,71127.0,0.0014]
[1773465379302,0.20317918,71142.0,71127.0,0.0014]
[1773465379506,0.20317918,71141.0,71127.0,0.0014]
[1773465379811,0.03889537,71143.0,71127.0,0.0014]
[1773465380012,0.20313867,71142.0,71127.0,0.0014]
[1773465380213,0.20313867,71141.0,71127.0,0.0014]
[1773465380407,0.03889537,71143.0,71127.0,0.0014]
[1773465380614,0.20311506,71142.0,71127.0,0.0014]
[1773465380805,0.20311506,71141.0,71127.0,0.0014]
[1773465381002,0.042166,71136.0,71127.0,0.0014]
[1773465381501,0.042167,71135.0,71127.0,0.0014]
[1773465392813,0.042167,71134.0,71127.0,0.0014]
[1773465394914,0.042168,71133.0,71127.0,0.0014]
[1773465396217,0.042168,71133.0,71128.0,0.0014]
[1773465396622,0.042168,71133.0,71120.0,0.15350661]
[1773465396823,0.042168,71133.0,71121.0,0.0014]
[1773465397123,0.042168,71133.0,71120.0,0.15350661]
[1773465397421,0.042168,71133.0,71121.0,0.0014]
[1773465397625,0.04124743,71134.0,71122.0,0.0014]
[1773465397816,0.04124743,71134.0,71123.0,0.0014]
[1773465398120,0.04124743,71134.0,71113.0,0.31629575]
[1773465398323,0.04124743,71134.0,71114.0,0.0014]
[1773465398522,0.042172,71126.0,71115.0,0.0014]
[1773465399022,0.042172,71126.0,71116.0,0.0014]
[1773465399627,0.042172,71126.0,71117.0,0.0014]
[1773465400224,0.042172,71126.0,71118.0,0.0014]
[1773465400725,0.042172,71126.0,71113.0,0.35847475]
[1773465400926,0.042172,71126.0,71119.0,0.0014]
[1773465401424,0.042172,71126.0,71120.0,0.0014]
[1773465401825,0.042172,71126.0,71121.0,0.0014]
[1773465402027,0.042172,71126.0,71122.0,0.0014]
[1773465402230,0.042172,71126.0,71113.0,0.35847475]
[1773465402524,0.042172,71126.0,71114.0,0.0014]
[1773465402728,0.042173,71125.0,71115.0,0.0014]
[1773465403324,0.042173,71125.0,71116.0,0.0014]
[1773465403822,0.042171,71127.0,71117.0,0.0014]
[1773465405932,0.042172,71126.0,71117.0,0.0014]
[1773465406126,0.04124743,71134.0,71117.0,0.0014]
[1773465406430,0.042174,71124.0,71118.0,0.0014]
[1773465406629,0.042174,71124.0,71119.0,0.0014]